fUSD/lending_fUSD_20240121
["ID","MTS","AMOUNT","RATE_DAILY","PERIOD"]
[312416440,1705863121571,-500.0,0.00043835,31]
[312416441,1705863121581,-554.71,0.00043835,31]
[312416442,1705863121592,-843.24,0.00043835,31]
[312416443,1705863121602,-505.05,0.00043835,31]
[312416444,1705863121612,-500.0,0.00043835,31]
[312416445,1705863121622,-1011.31,0.00043835,31]
[312416446,1705863121632,-500.0,0.00043835,31]
[312416447,1705863121642,-500.0,0.00043835,31]
[312416448,1705863121652,-1242.18,0.00043835,31]
[312416449,1705863121662,-500.0,0.00043835,60]
[312416450,1705863121672,-500.0,0.00043835,15]
[312416451,1705863121684,-31979.27,0.00043835,31]
[312416452,1705863121694,-1802.54,0.00043835,31]
[312416453,1705863121704,-500.0,0.00043835,31]
[312416454,1705863121714,-724.71,0.00043835,31]
[312416455,1705863121724,-2046.63,0.00043835,31]
[312416456,1705863121734,-1209.74,0.00043835,31]
[312416457,1705863121744,-1903.42,0.00043835,31]
[312416458,1705863121755,-4903.09,0.00043835,31]
[312416459,1705863121765,-500.0,0.00043835,31]
[312416460,1705863121776,-1146.65,0.00043835,31]
[312416461,1705863121786,-2442.87,0.00043835,31]
[312416462,1705863121796,-434.90721772,0.00043835,31]
[312416463,1705863121807,-500.0,0.00043835,31]
[312416464,1705863121818,-2526.05,0.00043835,31]
[312416465,1705863121827,-2162.48,0.00043835,31]
[312416466,1705863121838,-1626.96,0.00043835,31]
[312416467,1705863121848,-1000.0,0.00043835,2]
[312416468,1705863121858,-1812.71,0.00043835,31]
[312416469,1705863121868,-587.59864814,0.00043835,31]
[312416470,1705863121878,-500.0,0.00043835,31]
[312416471,1705863121888,-509.47,0.00043835,31]
[312416472,1705863121898,-807.78,0.00043835,31]
[312416473,1705863121908,-638.08,0.00043835,31]
[312416474,1705863121918,-4768.84,0.00043835,31]
[312416475,1705863121928,-500.0,0.00043835,31]
[312416476,1705863121937,-500.0,0.00043835,31]
[312416477,1705863121947,-500.0,0.00043835,31]
[312416478,1705863121957,-23111.4,0.00043835,31]
[312416479,1705863121967,-2345.39,0.00043835,31]
[312416480,1705863121977,-641.88,0.00043835,31]
[312416481,1705863121987,-1543.52,0.00043835,31]
[312416482,1705863121997,-500.0,0.00043835,31]
[312416483,1705863122006,-2539.24,0.00043835,31]
[312416484,1705863122016,-518.62708843,0.00043835,31]
[312416485,1705863122028,-4085.26,0.00043835,31]
[312416486,1705863122038,-500.0,0.00043835,31]
[312416487,1705863122048,-500.0,0.00043835,2]
[312416488,1705863122058,-500.0,0.00043835,31]
[312416489,1705863122068,-1053.53,0.00043835,31]
[312416490,1705863122078,-500.0,0.00043835,31]
[312416491,1705863122088,-1444.4,0.00043835,31]
[312416492,1705863122098,-1203.58,0.00043835,31]
[312416493,1705863122108,-8334.75,0.00043835,31]
[312416494,1705863122118,-1170.03,0.00043835,31]
[312416495,1705863122128,-3868.82,0.00043835,31]
[312416496,1705863122138,-1290.9,0.00043835,31]
[312416497,1705863122147,-2604.67,0.00043835,31]
[312416498,1705863122157,-751.65,0.00043835,31]
[312416499,1705863122166,-3891.13,0.00043835,31]
[312416500,1705863122176,-500.0,0.00043835,31]
[312416501,1705863122185,-879.17,0.00043835,31]
[312416502,1705863122195,-702.2,0.00043835,31]
[312416503,1705863122205,-1512.38,0.00043835,31]
[312416504,1705863122215,-500.0,0.00043835,31]
[312416505,1705863122226,-500.0,0.00043835,31]
[312416506,1705863122236,-500.0,0.00043835,31]
[312416507,1705863122246,-4210.98,0.00043835,31]
[312416508,1705863122256,-500.0,0.00043835,31]
[312416509,1705863122265,-1010.5,0.00043835,31]
[312416510,1705863122275,-500.0,0.00043835,31]
[312416511,1705863122402,-5113.55,0.00043835,31]
[312416512,1705863122412,-5553.41,0.00043835,31]
[312416513,1705863122422,-500.0,0.00043835,31]
[312416514,1705863122431,-2021.88,0.00043835,31]
[312416515,1705863122441,-831.35,0.00043835,31]
[312416516,1705863122450,-500.0,0.00043835,31]
[312416517,1705863122460,-500.0,0.00043835,31]
[312416518,1705863122469,-1451.78,0.00043835,31]
[312416519,1705863122480,-2047.15,0.00043835,31]
[312416520,1705863122490,-500.0,0.00043835,31]
[312416521,1705863122499,-500.0,0.00043835,31]
[312416522,1705863122508,-1645.64,0.00043835,31]
[312416523,1705863122517,-500.0,0.00043835,31]
[312416524,1705863122527,-928.47,0.00043835,31]
[312416525,1705863122537,-1009.2,0.00043835,31]
[312416526,1705863122546,-1721.6,0.00043835,31]
[312416527,1705863122555,-507.02,0.00043835,31]
[312416528,1705863122564,-500.0,0.00043835,31]
[312416529,1705863122574,-833.04,0.00043835,31]
[312416530,1705863122583,-500.0,0.00043835,31]
[312416531,1705863122593,-853.75,0.00043835,31]
[312416532,1705863122602,-3752.11,0.00043835,31]
[312416533,1705863122612,-2604.2,0.00043835,31]
[312416534,1705863122621,-1139.83,0.00043835,31]
[312416535,1705863122632,-1000.0,0.00043835,30]
[312416536,1705863122641,-3344.19,0.00043835,31]
[312416537,1705863122651,-656.95,0.00043835,31]
[312416538,1705863122669,-500.0,0.00043835,31]
[312416539,1705863122679,-500.0,0.00043835,31]
[312416540,1705863122688,-1369.33,0.00043835,31]
[312416541,1705863122697,-500.0,0.00043835,31]
[312416542,1705863122707,-500.0,0.00043835,31]
[312416543,1705863122716,-2125.69,0.00043835,31]
[312416544,1705863122726,-2177.35,0.00043835,31]
[312416545,1705863122735,-523.94,0.00043835,31]
[312416546,1705863122745,-255.42061264,0.00043835,31]
[312416547,1705863122755,-1442.9,0.00043835,31]
[312416548,1705863122764,-1712.99,0.00043835,31]
[312416549,1705863122774,-500.0,0.00043835,31]
[312416550,1705863122783,-1404.4,0.00043835,31]
[312416551,1705863122793,-500.0,0.00043835,31]
[312416552,1705863122802,-500.0,0.00043835,31]
[312416553,1705863122812,-500.0,0.00043835,31]
[312416554,1705863122821,-1360.45,0.00043835,31]
[312416555,1705863122834,-504.9,0.00043835,31]
[312416556,1705863122843,-500.0,0.00043835,31]
[312416557,1705863122852,-989.76,0.00043835,31]
[312416558,1705863122862,-500.0,0.00043835,31]
[312416559,1705863122871,-2806.49,0.00043835,31]
[312416560,1705863122880,-1242.78,0.00043835,31]
[312416561,1705863122889,-10132.2,0.00043835,31]
[312416562,1705863122898,-500.0,0.00043835,31]
[312416563,1705863122908,-627.09,0.00043835,31]
[312416564,1705863122916,-2496.9,0.00043835,31]
[312416565,1705863122926,-500.0,0.00043835,31]
[312416566,1705863122935,-3890.38,0.00043835,31]
[312416567,1705863122944,-1097.31,0.00043835,31]
[312416568,1705863122953,-500.0,0.00043835,31]
[312416569,1705863122963,-4035.88,0.00043835,31]
[312416570,1705863122972,-1353.68,0.00043835,31]
[312416571,1705863122981,-10189.15,0.00043835,31]
[312416572,1705863122991,-500.0,0.00043835,31]
[312416573,1705863122999,-775.43,0.00043835,31]
[312416574,1705863123009,-4930.09,0.00043835,31]
[312416575,1705863123018,-500.0,0.00043835,2]
[312416576,1705863123027,-500.0,0.00043835,31]
[312416577,1705863123037,-500.0,0.00043835,10]
[312416578,1705863123046,-500.0,0.00043835,31]
[312416579,1705863123056,-336.93426877,0.00043835,31]
[312416580,1705863123065,-500.0,0.00043835,31]
[312416581,1705863123075,-500.0,0.00043835,31]
[312416582,1705863123084,-4049.62,0.00043835,31]
[312416583,1705863123093,-678.75,0.00043835,31]
[312416584,1705863123102,-1229.34,0.00043835,31]
[312416585,1705863123112,-500.0,0.00043835,31]
[312416586,1705863123121,-500.0,0.00043835,31]
[312416587,1705863123131,-3443.53,0.00043835,31]
[312416588,1705863123140,-151.0,0.00043835,14]
[312416589,1705863123149,-150.0,0.00043841,120]
[312416590,1705863123159,-155.92044565,0.0004389,30]
[312416591,1705863123168,-1000.0,0.00043897,4]
[312416592,1705863123178,-953.43125265,0.00043903,30]
[312416593,1705863123187,-896.3673576,0.00043925,30]
[312416594,1705863123196,-355.40143417,0.00043948,30]
[312416595,1705863123205,-500.0,0.00043958,2]
[312416596,1705863123215,-200.0,0.00043987,36]
[312416597,1705863123224,-200.0,0.00043987,60]
[312416598,1705863123234,-5000.0,0.00044,5]
[312416599,1705863123243,-6635.8126108,0.00044,30]
[312416600,1705863123252,-2000.0,0.00044,2]
[312416601,1705863123261,-2000.0,0.00044,2]
[312416602,1705863123271,-2000.0,0.00044,2]
[312416603,1705863123279,-2000.0,0.00044,2]
[312416604,1705863123289,-2000.0,0.00044,2]
[312416605,1705863123298,-2000.0,0.00044,2]
[312416606,1705863123307,-2000.0,0.00044,2]
[312416607,1705863123316,-2000.0,0.00044,2]
[312416608,1705863123325,-2000.0,0.00044,2]
[312416609,1705863123335,-2000.0,0.00044,2]
[312416610,1705863123344,-2110.0,0.00044,15]
[312416611,1705863123353,-1800.0,0.00044,3]
[312416612,1705863123363,-150.0,0.00044003,2]
[312416613,1705863123372,-157.397368,0.00044039,30]
[312416614,1705863123382,-500.0,0.00044055,14]
[312416615,1705863123392,-150.0,0.00044056,2]
[312416616,1705863123402,-1185.69,0.00044085,15]
[312416617,1705863123411,-200.0,0.000441,2]
[312416618,1705863123421,-200.0,0.000441,2]
[312416619,1705863123430,-1282.0,0.000441,30]
[312416620,1705863123439,-313.0,0.000441,30]
[312416621,1705863123450,-150.96,0.00044129,2]
[312416622,1705863123459,-166.91230757,0.00044149,2]
[312416623,1705863123468,-150.0,0.00044163,2]
[312416624,1705863123477,-157.24176502,0.00044166,30]
[312416625,1705863123487,-157.24176502,0.00044173,30]
[312416626,1705863123497,-953.43125265,0.00044183,30]
[312416627,1705863123506,-150.0,0.00044183,2]
[312416628,1705863123515,-157.0,0.000442,30]
[312416629,1705863123524,-155.03181256,0.00044221,30]
[312416630,1705863123534,-150.0,0.00044237,2]
[312416631,1705863123542,-153.06381515,0.00044242,30]
[312416632,1705863123552,-150.0,0.00044252,2]
[312416633,1705863123562,-355.40143417,0.00044259,30]
[312416634,1705863123571,-364.73162279,0.00044289,14]
[312416635,1705863123581,-181.63371409,0.00044289,14]
[312416636,1705863123590,-248.61643646,0.00044289,14]
[312416637,1705863123599,-276.18212841,0.00044289,14]
[312416638,1705863123608,-218.49632604,0.00044289,14]
[312416639,1705863123618,-1965.0,0.0004429,3]
[312416640,1705863123628,-185.05109231,0.0004434,30]
[312416641,1705863123638,-150.0,0.00044348,2]
[312416642,1705863123647,-150.0,0.00044375,2]
[312416643,1705863123657,-953.43125265,0.00044381,30]
[312416644,1705863123666,-500.0,0.00044383,5]
[312416645,1705863123677,-555.52,0.00044383,31]
[312416646,1705863123687,-500.0,0.00044383,31]
[312416647,1705863123696,-500.0,0.00044383,7]
[312416648,1705863123706,-664.7,0.00044383,2]
[312416649,1705863123715,-503.87,0.00044383,31]
[312416650,1705863123724,-552.56,0.00044383,31]
[312416651,1705863123733,-301.10090879,0.00044383,31]
[312416652,1705863123742,-548.42,0.00044383,31]
[312416653,1705863123754,-500.0,0.00044383,31]
[312416654,1705863123765,-500.0,0.00044383,31]
[312416655,1705863123774,-427.88063417,0.00044383,31]
[312416656,1705863123783,-545.31,0.00044383,31]
[312416657,1705863123791,-500.0,0.00044383,31]
[312416658,1705863123800,-609.33,0.00044383,31]
[312416659,1705863123809,-600.0056306,0.00044383,31]
[312416660,1705863123817,-500.0,0.00044383,31]
[312416661,1705863123826,-500.0,0.00044383,31]
[312416662,1705863123835,-534.84,0.00044383,31]
[312416663,1705863123844,-500.0,0.00044383,31]
[312416664,1705863123853,-983.24,0.00044383,31]
[312416665,1705863123862,-500.0,0.00044383,31]
[312416666,1705863123871,-500.0,0.00044383,31]
[312416667,1705863123881,-500.0,0.00044383,31]
[312416668,1705863123890,-500.0,0.00044383,31]
[312416669,1705863123899,-540.33,0.00044383,31]
[312416670,1705863123908,-500.0,0.00044383,31]
[312416671,1705863123917,-622.72,0.00044383,31]
[312416672,1705863123927,-500.0,0.00044383,31]
[312416673,1705863123936,-500.0,0.00044383,31]
[312416674,1705863123946,-500.0,0.00044383,31]
[312416675,1705863123955,-500.0,0.00044383,31]
[312416676,1705863123964,-500.0,0.00044383,31]
[312416677,1705863123973,-553.34,0.00044383,31]
[312416678,1705863123983,-509.80139958,0.00044383,31]
[312416679,1705863123993,-478.42722113,0.00044383,31]
[312416680,1705863124003,-500.0,0.00044383,31]
[312416681,1705863124012,-547.07,0.00044383,31]
[312416682,1705863124022,-500.0,0.00044383,31]
[312416683,1705863124031,-540.68,0.00044383,31]
[312416684,1705863124041,-500.0,0.00044383,31]
[312416685,1705863124050,-500.0,0.00044383,31]
[312416686,1705863124059,-500.0,0.00044383,31]
[312416687,1705863124069,-662.98,0.00044383,20]
[312416688,1705863124078,-500.0,0.00044383,31]
[312416689,1705863124088,-500.0,0.00044383,31]
[312416690,1705863124101,-1000.0,0.00044383,2]
[312416691,1705863124112,-500.0,0.00044383,31]
[312416692,1705863124122,-679.87,0.00044383,31]
[312416693,1705863124131,-500.0,0.00044383,31]
[312416694,1705863124142,-500.0,0.00044383,31]
[312416695,1705863124152,-500.0,0.00044383,31]
[312416696,1705863124162,-801.92,0.00044383,31]
[312416697,1705863124172,-500.0,0.00044383,31]
[312416698,1705863124182,-500.0,0.00044383,31]
[312416699,1705863124192,-500.0,0.00044383,31]
[312416700,1705863124202,-556.67,0.00044383,31]
[312416701,1705863124211,-500.0,0.00044383,31]
[312416702,1705863124221,-500.0,0.00044383,31]
[312416703,1705863124230,-500.0,0.00044383,31]
[312416704,1705863124240,-500.0,0.00044383,31]
[312416705,1705863124250,-500.0,0.00044383,31]
[312416706,1705863124260,-500.0,0.00044383,31]
[312416707,1705863124270,-628.07,0.00044383,31]
[312416708,1705863124280,-500.0,0.00044383,31]
[312416709,1705863124290,-500.0,0.00044383,31]
[312416710,1705863124300,-500.0,0.00044383,31]
[312416711,1705863124310,-500.0,0.00044383,31]
[312416712,1705863124320,-663.06,0.00044383,31]
[312416713,1705863124330,-500.0,0.00044383,31]
[312416714,1705863124340,-500.0,0.00044383,31]
[312416715,1705863124349,-500.0,0.00044383,31]
[312416716,1705863124360,-500.0,0.00044383,31]
[312416717,1705863124370,-562.47,0.00044383,31]
[312416718,1705863124380,-500.0,0.00044383,31]
[312416719,1705863124391,-500.0,0.00044383,31]
[312416720,1705863124401,-500.0,0.00044383,31]
[312416721,1705863124411,-875.16,0.00044383,31]
[312416722,1705863124421,-500.0,0.00044383,31]
[312416723,1705863124431,-500.0,0.00044383,31]
[312416724,1705863124441,-500.0,0.00044383,31]
[312416725,1705863124451,-1217.3,0.00044383,31]
[312416726,1705863124461,-859.18,0.00044383,31]
[312416727,1705863124471,-500.0,0.00044383,31]
[312416728,1705863124481,-574.98,0.00044383,31]
[312416729,1705863124490,-500.0,0.00044383,31]
[312416730,1705863124500,-500.0,0.00044383,31]
[312416731,1705863124510,-500.0,0.00044383,31]
[312416732,1705863124520,-547.06,0.00044383,31]
[312416733,1705863124530,-500.0,0.00044383,31]
[312416734,1705863124540,-1017.54,0.00044383,2]
[312416735,1705863124550,-500.0,0.00044383,31]
[312416736,1705863124560,-952.82,0.00044383,31]
[312416737,1705863124570,-500.0,0.00044383,31]
[312416738,1705863124579,-500.0,0.00044383,31]
[312416739,1705863124589,-1019.1,0.00044383,31]
[312416740,1705863124599,-500.0,0.00044383,31]
[312416741,1705863124609,-590.85,0.00044383,31]
[312416742,1705863124618,-670.02,0.00044383,31]
[312416743,1705863124628,-500.0,0.00044383,31]
[312416744,1705863124638,-899.25,0.00044383,31]
[312416745,1705863124648,-500.0,0.00044383,31]
[312416746,1705863124658,-851.14,0.00044383,31]
[312416747,1705863124672,-500.0,0.00044383,31]
[312416748,1705863124681,-500.0,0.00044383,31]
[312416749,1705863124691,-500.0,0.00044383,31]
[312416750,1705863124701,-1000.0,0.00044383,31]
[312416751,1705863124711,-901.99,0.00044383,31]
[312416752,1705863124721,-500.0,0.00044383,31]
[312416753,1705863124731,-500.0,0.00044383,31]
[312416754,1705863124742,-646.33,0.00044383,31]
[312416755,1705863124751,-500.0,0.00044383,31]
[312416756,1705863124761,-500.0,0.00044383,31]
[312416757,1705863124770,-500.0,0.00044383,31]
[312416758,1705863124780,-1051.97,0.00044383,31]
[312416759,1705863124791,-1736.1,0.00044383,31]
[312416760,1705863124801,-779.96,0.00044383,31]
[312416761,1705863124811,-500.0,0.00044383,31]
[312416762,1705863124820,-500.0,0.00044383,31]
[312416763,1705863124830,-500.0,0.00044383,31]
[312416764,1705863124840,-758.95,0.00044383,31]
[312416765,1705863124850,-552.16,0.00044383,31]
[312416766,1705863124860,-500.0,0.00044383,31]
[312416767,1705863124870,-832.67,0.00044383,31]
[312416768,1705863124879,-828.98,0.00044383,31]
[312416769,1705863124889,-500.0,0.00044383,31]
[312416770,1705863124899,-885.24,0.00044383,2]
[312416771,1705863124909,-1089.54,0.00044383,31]
[312416772,1705863124919,-500.0,0.00044383,31]
[312416773,1705863124929,-500.0,0.00044383,31]
[312416774,1705863124939,-1094.52,0.00044383,31]
[312416775,1705863124949,-560.30880043,0.00044383,31]
[312416776,1705863124959,-994.47,0.00044383,31]
[312416777,1705863124968,-500.0,0.00044383,31]
[312416778,1705863124978,-1710.22,0.00044383,31]
[312416779,1705863124988,-500.0,0.00044383,31]
[312416780,1705863124997,-1261.22,0.00044383,31]
[312416781,1705863125008,-500.0,0.00044383,31]
[312416782,1705863125018,-854.62,0.00044383,31]
[312416783,1705863125028,-1142.33,0.00044383,31]
[312416784,1705863125038,-500.0,0.00044383,31]
[312416785,1705863125049,-500.0,0.00044383,31]
[312416786,1705863125059,-695.88,0.00044383,31]
[312416787,1705863125069,-852.67,0.00044383,31]
[312416788,1705863125079,-500.0,0.00044383,31]
[312416789,1705863125090,-848.47,0.00044383,31]
[312416790,1705863125100,-500.0,0.00044383,31]
[312416791,1705863125110,-500.0,0.00044383,31]
[312416792,1705863125119,-764.06,0.00044383,31]
[312416793,1705863125129,-500.0,0.00044383,31]
[312416794,1705863125140,-1037.5,0.00044383,31]
[312416795,1705863125150,-1061.05,0.00044383,31]
[312416796,1705863125160,-500.0,0.00044383,31]
[312416797,1705863125170,-1032.07,0.00044383,31]
[312416798,1705863125179,-570.79732878,0.00044383,31]
[312416799,1705863125190,-539.06,0.00044383,20]
[312416800,1705863125200,-1080.19,0.00044383,31]
[312416801,1705863125211,-500.0,0.00044383,31]
[312416802,1705863125223,-500.0,0.00044383,31]
[312416803,1705863125233,-584.66,0.00044383,31]
[312416804,1705863125244,-508.46,0.00044383,31]
[312416805,1705863125253,-810.58,0.00044383,31]
[312416806,1705863125264,-504.22,0.00044383,31]
[312416807,1705863125274,-500.0,0.00044383,31]
[312416808,1705863125284,-517.96,0.00044383,31]
[312416809,1705863125294,-1628.19,0.00044383,31]
[312416810,1705863125304,-500.0,0.00044383,31]
[312416811,1705863125315,-500.0,0.00044383,31]
[312416812,1705863125325,-841.37,0.00044383,31]
[312416813,1705863125335,-500.0,0.00044383,31]
[312416814,1705863125345,-1031.39,0.00044383,31]
[312416815,1705863125355,-656.35,0.00044383,31]
[312416816,1705863125365,-1204.6,0.00044383,31]
[312416817,1705863125375,-885.84,0.00044383,31]
[312416818,1705863125385,-500.0,0.00044383,31]
[312416819,1705863125396,-500.0,0.00044383,31]
[312416820,1705863125414,-743.47,0.00044383,31]
[312416821,1705863125424,-500.0,0.00044383,31]
[312416822,1705863125435,-1625.28,0.00044383,31]
[312416823,1705863125445,-1173.34,0.00044383,31]
[312416824,1705863125456,-651.6,0.00044383,31]
[312416825,1705863125466,-500.0,0.00044383,31]
[312416826,1705863125476,-1176.24,0.00044383,31]
[312416827,1705863125486,-500.0,0.00044383,31]
[312416828,1705863125496,-653.83,0.00044383,31]
[312416829,1705863125505,-580.99,0.00044383,31]
[312416830,1705863125515,-367.27001676,0.00044383,31]
[312416831,1705863125525,-500.0,0.00044383,31]
[312416832,1705863125536,-514.68870887,0.00044383,31]
[312416833,1705863125546,-703.23,0.00044383,31]
[312416834,1705863125556,-979.3,0.00044383,31]
[312416835,1705863125567,-1290.61,0.00044383,31]
[312416836,1705863125577,-500.0,0.00044383,31]
[312416837,1705863125589,-500.0,0.00044383,31]
[312416838,1705863125599,-2291.12,0.00044383,31]
[312416839,1705863125610,-1150.77,0.00044383,31]
[312416840,1705863125620,-500.0,0.00044383,31]
[312416841,1705863125630,-755.53,0.00044383,31]
[312416842,1705863125640,-600.73,0.00044383,31]
[312416843,1705863125650,-500.0,0.00044383,30]
[312416844,1705863125660,-500.0,0.00044383,31]
[312416845,1705863125670,-570.33,0.00044383,31]
[312416846,1705863125683,-1186.31,0.00044383,31]
[312416847,1705863125692,-530.31,0.00044383,31]
[312416848,1705863125702,-1218.15,0.00044383,31]
[312416849,1705863125712,-500.0,0.00044383,31]
[312416850,1705863125723,-719.86,0.00044383,31]
[312416851,1705863125732,-500.0,0.00044383,31]
[312416852,1705863125742,-500.0,0.00044383,31]
[312416853,1705863125752,-500.0,0.00044383,31]
[312416854,1705863125763,-1419.05,0.00044383,31]
[312416855,1705863125774,-989.05,0.00044383,31]
[312416856,1705863125784,-1073.76,0.00044383,31]
[312416857,1705863125794,-500.0,0.00044383,31]
[312416858,1705863125804,-1620.1,0.00044383,31]
[312416859,1705863125814,-500.0,0.00044383,31]
[312416860,1705863125824,-953.57,0.00044383,31]
[312416861,1705863125835,-503.72,0.00044383,31]
[312416862,1705863125846,-686.64,0.00044383,31]
[312416863,1705863125857,-1577.99,0.00044383,31]
[312416864,1705863125866,-509.90616131,0.00044383,31]
[312416865,1705863125877,-741.63,0.00044383,31]
[312416866,1705863125887,-657.61,0.00044383,31]
[312416867,1705863125897,-500.0,0.00044383,31]
[312416868,1705863125907,-500.0,0.00044383,31]
[312416869,1705863125917,-500.0,0.00044383,31]
[312416870,1705863125927,-10000.0,0.00044383,31]
[312416871,1705863125937,-504.7,0.00044383,31]
[312416872,1705863125947,-500.0,0.00044383,31]
[312416873,1705863125956,-750.34,0.00044383,31]
[312416874,1705863125966,-1162.05,0.00044383,31]
[312416875,1705863125976,-848.05,0.00044383,31]
[312416876,1705863125985,-1048.21,0.00044383,31]
[312416877,1705863125996,-500.0,0.00044383,31]
[312416878,1705863126006,-500.0,0.00044383,31]
[312416879,1705863126016,-645.26,0.00044383,31]
[312416880,1705863126025,-730.17,0.00044383,31]
[312416881,1705863126035,-888.07,0.00044383,31]
[312416882,1705863126045,-1029.09,0.00044383,31]
[312416883,1705863126055,-500.0,0.00044383,2]
[312416884,1705863126065,-561.84,0.00044383,31]
[312416885,1705863126075,-500.0,0.00044383,31]
[312416886,1705863126084,-500.0,0.00044383,31]
[312416887,1705863126094,-776.61,0.00044383,31]
[312416888,1705863126103,-1041.57,0.00044383,31]
[312416889,1705863126113,-579.77,0.00044383,31]
[312416890,1705863126123,-730.27,0.00044383,31]
[312416891,1705863126133,-780.43,0.00044383,31]
[312416892,1705863126143,-745.98,0.00044383,31]
[312416893,1705863126153,-1220.97,0.00044383,31]
[312416894,1705863126164,-938.59,0.00044383,31]
[312416895,1705863126175,-3118.19,0.00044383,31]
[312416896,1705863126185,-1298.67,0.00044383,31]
[312416897,1705863126195,-935.41,0.00044383,31]
[312416898,1705863126205,-1952.53,0.00044383,31]
[312416899,1705863126215,-500.0,0.00044383,31]
[312416900,1705863126225,-768.13,0.00044383,31]
[312416901,1705863126236,-500.0,0.00044383,31]
[312416902,1705863126246,-890.92,0.00044383,31]
[312416903,1705863126256,-1310.81,0.00044383,31]
[312416904,1705863126266,-563.09,0.00044383,31]
[312416905,1705863126276,-500.0,0.00044383,31]
[312416906,1705863126286,-1323.52,0.00044383,31]
[312416907,1705863126534,-500.0,0.00044383,8]
[312416908,1705863126549,-679.03,0.00044383,31]
[312416909,1705863126559,-500.0,0.00044383,31]
[312416910,1705863126569,-500.0,0.00044383,31]
[312416911,1705863126581,-701.31,0.00044383,31]
[312416912,1705863126590,-1411.28,0.00044383,31]
[312416913,1705863126599,-1476.08,0.00044383,31]
[312416914,1705863126609,-952.35,0.00044383,31]
[312416915,1705863126618,-836.49,0.00044383,31]
[312416916,1705863126631,-1119.54,0.00044383,31]
[312416917,1705863126641,-2100.19,0.00044383,31]
[312416918,1705863126651,-1699.55,0.00044383,31]
[312416919,1705863126667,-1129.23,0.00044383,31]
[312416920,1705863126676,-500.0,0.00044383,31]
[312416921,1705863126688,-978.64,0.00044383,31]
[312416922,1705863126698,-518.29,0.00044383,7]
[312416923,1705863126708,-500.0,0.00044383,31]
[312416924,1705863126717,-500.0,0.00044383,31]
[312416925,1705863126726,-1088.8,0.00044383,31]
[312416926,1705863126736,-1373.63,0.00044383,31]
[312416927,1705863126745,-500.0,0.00044383,31]
[312416928,1705863126755,-509.4,0.00044383,30]
[312416929,1705863126765,-1096.84,0.00044383,31]
[312416930,1705863126775,-784.37,0.00044383,31]
[312416931,1705863126786,-786.57,0.00044383,31]
[312416932,1705863126796,-611.25,0.00044383,31]
[312416933,1705863126806,-1153.04,0.00044383,31]
[312416934,1705863126816,-608.98000379,0.00044383,31]
[312416935,1705863126826,-1019.37,0.00044383,31]
[312416936,1705863126835,-500.0,0.00044383,7]
[312416937,1705863126844,-1231.51,0.00044383,31]
[312416938,1705863126854,-500.0,0.00044383,31]
[312416939,1705863126864,-500.0,0.00044383,31]